[Event "Early-Titled-Tuesday-Blitz-April-23-2024"]
[Site "Chess.com"]
[Date "2024.04.23"]
[Round "6"]
[White "NovozhilovSemen"]
[Black "David_George21"]
[Result "1-0"]
[WhiteElo "2647"]
[BlackElo "2339"]
[TimeControl "180+1"]
[EndTime "9:08:34 PDT"]
[Termination "NovozhilovSemen won by resignation"]

1. d4 {[%clk 0:03:00.9]} 1... Nf6 {[%clk 0:02:56.9]} 2. Nf3 {[%clk 0:03:00.6]}
2... e6 {[%clk 0:02:56.7]} 3. e3 {[%clk 0:03:00.7]} 3... d5 {[%clk 0:02:53.5]}
4. Bd3 {[%clk 0:03:00.6]} 4... c5 {[%clk 0:02:54.2]} 5. b3 {[%clk 0:02:59.9]}
5... Nc6 {[%clk 0:02:52.2]} 6. O-O {[%clk 0:02:59.9]} 6... Bd6 {[%clk
0:02:51.7]} 7. Bb2 {[%clk 0:03:00.2]} 7... O-O {[%clk 0:02:52]} 8. Ne5 {[%clk
0:02:59.9]} 8... Ne4 {[%clk 0:02:50.8]} 9. f3 {[%clk 0:02:58.5]} 9... Nf6 {[%clk
0:02:47.3]} 10. a3 {[%clk 0:02:56.2]} 10... Qc7 {[%clk 0:02:47.3]} 11. f4 {[%clk
0:02:55.9]} 11... Ne4 {[%clk 0:02:47.6]} 12. Qf3 {[%clk 0:02:52.2]} 12... f6
{[%clk 0:02:47.3]} 13. Nxc6 {[%clk 0:02:10.2]} 13... Qxc6 {[%clk 0:02:46.8]} 14.
c4 {[%clk 0:02:10.1]} 14... f5 {[%clk 0:02:42.4]} 15. cxd5 {[%clk 0:02:09.1]}
15... exd5 {[%clk 0:02:43.3]} 16. Rc1 {[%clk 0:02:07.5]} 16... Qb6 {[%clk
0:02:38.9]} 17. Qd1 {[%clk 0:02:03.1]} 17... Be6 {[%clk 0:02:13.6]} 18. Nc3
{[%clk 0:01:53]} 18... c4 {[%clk 0:01:44]} 19. Bc2 {[%clk 0:01:22.8]} 19... Rac8
{[%clk 0:01:31.4]} 20. b4 {[%clk 0:01:14.8]} 20... a5 {[%clk 0:01:25.1]} 21.
Nxe4 {[%clk 0:01:07.2]} 21... fxe4 {[%clk 0:01:17.8]} 22. Bc3 {[%clk 0:01:07.4]}
22... axb4 {[%clk 0:01:09.3]} 23. axb4 {[%clk 0:01:08.3]} 23... Ra8 {[%clk
0:01:00.3]} 24. Ra5 {[%clk 0:01:02.4]} 24... Bxb4 {[%clk 0:00:56.7]} 25. Rxa8
{[%clk 0:01:01.7]} 25... Bxc3 {[%clk 0:00:44.5]} 26. Rxf8+ {[%clk 0:01:00.5]}
26... Kxf8 {[%clk 0:00:45.4]} 27. Rb1 {[%clk 0:00:51.5]} 27... Qc7 {[%clk
0:00:37.5]} 28. Qh5 {[%clk 0:00:47.5]} 28... g6 {[%clk 0:00:34.5]} 29. Qe5
{[%clk 0:00:47.4]} 29... Qe7 {[%clk 0:00:22.2]} 30. Rb6 {[%clk 0:00:39.6]} 30...
Bf7 {[%clk 0:00:11.5]} 31. Qh8+ {[%clk 0:00:34.2]} 31... Bg8 {[%clk 0:00:10.6]}
32. Rf6+ {[%clk 0:00:35.1]} 32... Qxf6 {[%clk 0:00:11.1]} 33. Qxf6+ {[%clk
0:00:36]} 33... Bf7 {[%clk 0:00:11.8]} 34. Qd6+ {[%clk 0:00:33.5]} 34... Kg7
{[%clk 0:00:11.7]} 35. Qe5+ {[%clk 0:00:33.9]} 35... Kg8 {[%clk 0:00:11.9]} 36.
Qb8+ {[%clk 0:00:33.8]} 36... Kg7 {[%clk 0:00:12.1]} 37. Qxb7 {[%clk 0:00:34.7]}
37... Bd2 {[%clk 0:00:12.2]} 38. Kf2 {[%clk 0:00:34.7]} 38... c3 {[%clk
0:00:11.4]} 39. g4 {[%clk 0:00:35.3]} 39... h5 {[%clk 0:00:11.2]} 40. gxh5
{[%clk 0:00:35.2]} 40... gxh5 {[%clk 0:00:12.1]} 41. f5 {[%clk 0:00:35.9]} 41...
Kf6 {[%clk 0:00:12.2]} 42. Bb3 {[%clk 0:00:32.7]} 42... Bg8 {[%clk 0:00:09.7]}
43. Bxd5 {[%clk 0:00:31.7]} 43... Bxd5 {[%clk 0:00:09.8]} 44. Qxd5 {[%clk
0:00:31.7]} 44... Kg5 {[%clk 0:00:05.3]} 45. Qxe4 {[%clk 0:00:30.8]} 45... c2
{[%clk 0:00:05.7]} 46. h4+ {[%clk 0:00:30.7]} 1-0

[Event "Early-Titled-Tuesday-Blitz-April-23-2024"]
[Site "Chess.com"]
[Date "2024.04.23"]
[Round "6"]
[White "Prizant_academy"]
[Black "Incognito_Knight"]
[Result "1-0"]
[WhiteElo "2942"]
[BlackElo "2743"]
[TimeControl "180+1"]
[EndTime "9:08:37 PDT"]
[Termination "Prizant_academy won by checkmate"]

1. d4 {[%clk 0:03:00.9]} 1... d5 {[%clk 0:02:57.4]} 2. c4 {[%clk 0:03:01.4]}
2... e6 {[%clk 0:02:55.4]} 3. Nf3 {[%clk 0:03:01.7]} 3... a6 {[%clk 0:02:55.4]}
4. e3 {[%clk 0:02:57.4]} 4... Nf6 {[%clk 0:02:54.6]} 5. b3 {[%clk 0:02:57]} 5...
b6 {[%clk 0:02:52.1]} 6. Nc3 {[%clk 0:02:48]} 6... Bb7 {[%clk 0:02:50.3]} 7. Bb2
{[%clk 0:02:48.6]} 7... Nbd7 {[%clk 0:02:50.4]} 8. cxd5 {[%clk 0:02:48.3]} 8...
exd5 {[%clk 0:02:50.5]} 9. g3 {[%clk 0:02:48.9]} 9... Bd6 {[%clk 0:02:50.3]} 10.
Bg2 {[%clk 0:02:49.4]} 10... O-O {[%clk 0:02:51]} 11. O-O {[%clk 0:02:48]} 11...
Qe7 {[%clk 0:02:51.4]} 12. Ne1 {[%clk 0:02:43.2]} 12... g6 {[%clk 0:02:46.8]}
13. Nd3 {[%clk 0:02:40.8]} 13... Ne4 {[%clk 0:02:44.1]} 14. Rc1 {[%clk
0:02:39.6]} 14... f5 {[%clk 0:02:38.7]} 15. Ne5 {[%clk 0:02:30.5]} 15... Rae8
{[%clk 0:02:26]} 16. f4 {[%clk 0:02:29.8]} 16... Ndf6 {[%clk 0:02:21.4]} 17. Qc2
{[%clk 0:01:57.3]} 17... Rc8 {[%clk 0:02:20]} 18. Rfd1 {[%clk 0:01:49.7]} 18...
Rfd8 {[%clk 0:02:19]} 19. Qe2 {[%clk 0:01:44.8]} 19... Qe6 {[%clk 0:02:07.9]}
20. Na4 {[%clk 0:01:34.1]} 20... Bxe5 {[%clk 0:01:44.4]} 21. dxe5 {[%clk
0:01:26.9]} 21... Nd7 {[%clk 0:01:38.1]} 22. b4 {[%clk 0:01:20.8]} 22... c5
{[%clk 0:01:30.7]} 23. bxc5 {[%clk 0:01:20.9]} 23... bxc5 {[%clk 0:01:27.2]} 24.
Nc3 {[%clk 0:01:13.7]} 24... Nb6 {[%clk 0:01:22.1]} 25. Nxe4 {[%clk 0:00:59.6]}
25... dxe4 {[%clk 0:01:02.8]} 26. Rxd8+ {[%clk 0:00:29]} 26... Rxd8 {[%clk
0:01:03.7]} 27. Rxc5 {[%clk 0:00:29.5]} 27... Na4 {[%clk 0:00:43.5]} 28. Rc2
{[%clk 0:00:25.3]} 28... Qxa2 {[%clk 0:00:35]} 29. Bd4 {[%clk 0:00:25.6]} 29...
Qb1+ {[%clk 0:00:29.8]} 30. Bf1 {[%clk 0:00:25.9]} 30... Bd5 {[%clk 0:00:17.5]}
31. e6 {[%clk 0:00:18.4]} 31... Bxe6 {[%clk 0:00:15.3]} 32. Qxa6 {[%clk
0:00:18.3]} 32... Rxd4 {[%clk 0:00:01.2]} 33. Qxe6+ {[%clk 0:00:18.1]} 33... Kf8
{[%clk 0:00:01.4]} 34. Rc8+ {[%clk 0:00:17.8]} 34... Kg7 {[%clk 0:00:02]} 35.
Qe7+ {[%clk 0:00:14.3]} 35... Kh6 {[%clk 0:00:02.3]} 36. Qh4+ {[%clk 0:00:14.7]}
36... Kg7 {[%clk 0:00:02.6]} 37. Rc7+ {[%clk 0:00:14.7]} 37... Kf8 {[%clk
0:00:02.5]} 38. Qf6+ {[%clk 0:00:14.7]} 38... Ke8 {[%clk 0:00:02.5]} 39. Qe7#
{[%clk 0:00:15]} 1-0

[Event "Early-Titled-Tuesday-Blitz-April-23-2024"]
[Site "Chess.com"]
[Date "2024.04.23"]
[Round "6"]
[White "michaelq2d5"]
[Black "The_Sherman_Variation"]
[Result "1/2-1/2"]
[WhiteElo "2921"]
[BlackElo "2739"]
[TimeControl "180+1"]
[EndTime "9:08:37 PDT"]
[Termination "Game drawn by repetition"]

1. c4 {[%clk 0:03:00.9]} 1... e5 {[%clk 0:02:58.7]} 2. Nc3 {[%clk 0:03:01.2]}
2... Nc6 {[%clk 0:02:58.2]} 3. Nf3 {[%clk 0:03:01.6]} 3... d6 {[%clk 0:02:58]}
4. d4 {[%clk 0:03:01.3]} 4... Be7 {[%clk 0:02:53.2]} 5. d5 {[%clk 0:03:01.1]}
5... Nb8 {[%clk 0:02:52.9]} 6. e4 {[%clk 0:03:01.5]} 6... a5 {[%clk 0:02:52]} 7.
Be2 {[%clk 0:03:01.6]} 7... f5 {[%clk 0:02:50.9]} 8. exf5 {[%clk 0:03:01]} 8...
Bxf5 {[%clk 0:02:50.5]} 9. Bd3 {[%clk 0:03:01.4]} 9... Qd7 {[%clk 0:02:48.7]}
10. O-O {[%clk 0:03:01.3]} 10... h6 {[%clk 0:02:43.2]} 11. Qc2 {[%clk
0:03:01.2]} 11... Bxd3 {[%clk 0:02:42.1]} 12. Qxd3 {[%clk 0:03:01.5]} 12... Qg4
{[%clk 0:02:39.3]} 13. h3 {[%clk 0:03:00.8]} 13... Qh5 {[%clk 0:02:38.8]} 14. c5
{[%clk 0:02:35]} 14... Nd7 {[%clk 0:02:26.4]} 15. c6 {[%clk 0:02:10.9]} 15...
bxc6 {[%clk 0:02:22.2]} 16. dxc6 {[%clk 0:02:11.1]} 16... Nc5 {[%clk 0:02:21.8]}
17. Qc4 {[%clk 0:02:11.2]} 17... Nf6 {[%clk 0:02:15.5]} 18. Be3 {[%clk
0:02:00.3]} 18... e4 {[%clk 0:02:01]} 19. Nd2 {[%clk 0:01:53.1]} 19... d5 {[%clk
0:01:56.6]} 20. Qb5 {[%clk 0:01:45.8]} 20... Ne6 {[%clk 0:01:47]} 21. Nb3 {[%clk
0:01:19.8]} 21... O-O {[%clk 0:01:44.7]} 22. Rad1 {[%clk 0:01:20]} 22... Rfd8
{[%clk 0:01:41.1]} 23. Nd4 {[%clk 0:01:15.6]} 23... Nf8 {[%clk 0:01:20.2]} 24.
Nde2 {[%clk 0:01:12.7]} 24... Bd6 {[%clk 0:01:13.7]} 25. Ng3 {[%clk 0:00:54.2]}
25... Bxg3 {[%clk 0:01:00.8]} 26. fxg3 {[%clk 0:00:55.1]} 26... Ne6 {[%clk
0:01:00.1]} 27. Rxf6 {[%clk 0:00:35]} 27... gxf6 {[%clk 0:00:59.9]} 28. Rxd5
{[%clk 0:00:35.7]} 28... Rxd5 {[%clk 0:00:58.5]} 29. Nxd5 {[%clk 0:00:36.6]}
29... Qe5 {[%clk 0:00:50.8]} 30. Bf4 {[%clk 0:00:28.9]} 30... Nxf4 {[%clk
0:00:45.3]} 31. gxf4 {[%clk 0:00:29.2]} 31... Qd4+ {[%clk 0:00:45.1]} 32. Kh2
{[%clk 0:00:29.6]} 32... e3 {[%clk 0:00:38.5]} 33. Kg3 {[%clk 0:00:23]} 33...
Kf7 {[%clk 0:00:35.2]} 34. Qb3 {[%clk 0:00:21.3]} 34... Rg8+ {[%clk 0:00:34.8]}
35. Kh2 {[%clk 0:00:21]} 35... Kg7 {[%clk 0:00:24.6]} 36. Nxe3 {[%clk
0:00:21.5]} 36... Qxf4+ {[%clk 0:00:24.5]} 37. Kh1 {[%clk 0:00:22.2]} 37... Rd8
{[%clk 0:00:22.8]} 38. Qe6 {[%clk 0:00:20.5]} 38... Rf8 {[%clk 0:00:12.9]} 39.
Nf5+ {[%clk 0:00:20.1]} 39... Kg6 {[%clk 0:00:13]} 40. Ne7+ {[%clk 0:00:19.7]}
40... Kh7 {[%clk 0:00:13.4]} 41. Nf5 {[%clk 0:00:20.3]} 41... Qc1+ {[%clk
0:00:12.9]} 42. Kh2 {[%clk 0:00:20.9]} 42... Qf4+ {[%clk 0:00:13.5]} 43. Kh1
{[%clk 0:00:21.6]} 43... Rg8 {[%clk 0:00:11.7]} 44. Qf7+ {[%clk 0:00:20.7]}
44... Kh8 {[%clk 0:00:12.2]} 45. Qxf6+ {[%clk 0:00:20]} 45... Kh7 {[%clk
0:00:12.8]} 46. Qf7+ {[%clk 0:00:20.1]} 46... Kh8 {[%clk 0:00:13.5]} 47. Qf6+
{[%clk 0:00:20.6]} 47... Kh7 {[%clk 0:00:13.7]} 48. Qe7+ {[%clk 0:00:16.6]}
48... Kh8 {[%clk 0:00:13.2]} 49. Qf6+ {[%clk 0:00:15.2]} 1/2-1/2

[Event "Early-Titled-Tuesday-Blitz-April-23-2024"]
[Site "Chess.com"]
[Date "2024.04.23"]
[Round "6"]
[White "Attacker88"]
[Black "Nf3c5"]
[Result "0-1"]
[WhiteElo "2390"]
[BlackElo "2657"]
[TimeControl "180+1"]
[EndTime "9:08:37 PDT"]
[Termination "Nf3c5 won on time"]

1. e4 {[%clk 0:02:59.6]} 1... c5 {[%clk 0:02:59.4]} 2. Nf3 {[%clk 0:02:58.3]}
2... Nc6 {[%clk 0:02:59.6]} 3. d4 {[%clk 0:02:58]} 3... cxd4 {[%clk 0:03:00]} 4.
Nxd4 {[%clk 0:02:58.6]} 4... e5 {[%clk 0:02:59.7]} 5. Nb5 {[%clk 0:02:58.2]}
5... d6 {[%clk 0:02:59.9]} 6. a4 {[%clk 0:02:57.9]} 6... Be6 {[%clk 0:02:56.3]}
7. N1c3 {[%clk 0:02:53.7]} 7... a6 {[%clk 0:02:56.9]} 8. Na3 {[%clk 0:02:53.4]}
8... Rc8 {[%clk 0:02:46.3]} 9. Bc4 {[%clk 0:02:50.3]} 9... Nb4 {[%clk
0:02:44.4]} 10. Nd5 {[%clk 0:02:06.1]} 10... Nxd5 {[%clk 0:02:08.6]} 11. Bxd5
{[%clk 0:02:05.8]} 11... Bxd5 {[%clk 0:02:08.3]} 12. Qxd5 {[%clk 0:02:02.2]}
12... Qc7 {[%clk 0:02:08.4]} 13. Bg5 {[%clk 0:01:50.3]} 13... h6 {[%clk
0:02:06]} 14. Bh4 {[%clk 0:01:47.1]} 14... g5 {[%clk 0:02:04.6]} 15. Bg3 {[%clk
0:01:47.2]} 15... Nf6 {[%clk 0:02:04.9]} 16. Qd3 {[%clk 0:01:43.1]} 16... Bg7
{[%clk 0:02:00.1]} 17. O-O {[%clk 0:01:08.8]} 17... O-O {[%clk 0:01:57.8]} 18.
Rad1 {[%clk 0:01:06.7]} 18... Rfd8 {[%clk 0:01:54.2]} 19. b3 {[%clk 0:00:59.8]}
19... Qc6 {[%clk 0:01:51.2]} 20. Rfe1 {[%clk 0:00:37.2]} 20... d5 {[%clk
0:01:04.5]} 21. exd5 {[%clk 0:00:36.3]} 21... Rxd5 {[%clk 0:01:03.5]} 22. Qf5
{[%clk 0:00:33.1]} 22... Re8 {[%clk 0:00:52.7]} 23. Nc4 {[%clk 0:00:28.5]} 23...
Rxd1 {[%clk 0:00:42]} 24. Rxd1 {[%clk 0:00:28.3]} 24... e4 {[%clk 0:00:39.9]}
25. Rd6 {[%clk 0:00:23.3]} 25... Qc8 {[%clk 0:00:31.5]} 26. Rxf6 {[%clk
0:00:20.8]} 26... Bxf6 {[%clk 0:00:31.9]} 27. Qxf6 {[%clk 0:00:20.9]} 27... Qe6
{[%clk 0:00:29.9]} 28. Qd4 {[%clk 0:00:18.5]} 28... f5 {[%clk 0:00:28.9]} 29.
Bc7 {[%clk 0:00:09.6]} 29... b5 {[%clk 0:00:24.4]} 30. axb5 {[%clk 0:00:05.9]}
30... axb5 {[%clk 0:00:25.3]} 31. Ne3 {[%clk 0:00:06.2]} 31... Re7 {[%clk
0:00:22.5]} 32. Nd5 {[%clk 0:00:06.5]} 32... Rf7 {[%clk 0:00:21.2]} 33. h4
{[%clk 0:00:05.7]} 33... f4 {[%clk 0:00:19.2]} 34. hxg5 {[%clk 0:00:05.4]} 34...
hxg5 {[%clk 0:00:20.1]} 35. Qc5 {[%clk 0:00:05.1]} 35... Kg7 {[%clk 0:00:17.3]}
36. Qd4+ {[%clk 0:00:04.1]} 36... Kg6 {[%clk 0:00:17.2]} 37. Qc5 {[%clk
0:00:04.1]} 37... Rd7 {[%clk 0:00:16]} 38. Nc3 {[%clk 0:00:01.9]} 38... e3
{[%clk 0:00:13.5]} 39. fxe3 {[%clk 0:00:01.6]} 39... fxe3 {[%clk 0:00:14.2]} 40.
Bg3 {[%clk 0:00:01.8]} 40... e2 {[%clk 0:00:12.8]} 0-1

[Event "Early-Titled-Tuesday-Blitz-April-23-2024"]
[Site "Chess.com"]
[Date "2024.04.23"]
[Round "6"]
[White "goodluck06"]
[Black "wild3000"]
[Result "1-0"]
[WhiteElo "2680"]
[BlackElo "2488"]
[TimeControl "180+1"]
[EndTime "9:08:38 PDT"]
[Termination "goodluck06 won by checkmate"]

1. c4 {[%clk 0:03:00.9]} 1... e5 {[%clk 0:02:59.4]} 2. Nc3 {[%clk 0:03:00]} 2...
Nc6 {[%clk 0:02:59.7]} 3. Nf3 {[%clk 0:03:00.6]} 3... Nf6 {[%clk 0:02:59.8]} 4.
e3 {[%clk 0:03:00.9]} 4... g6 {[%clk 0:02:55.8]} 5. d4 {[%clk 0:02:51.1]} 5...
exd4 {[%clk 0:02:55.8]} 6. Nxd4 {[%clk 0:02:49.8]} 6... Bg7 {[%clk 0:02:55.4]}
7. Be2 {[%clk 0:02:50.3]} 7... O-O {[%clk 0:02:55.2]} 8. O-O {[%clk 0:02:50.9]}
8... Nxd4 {[%clk 0:02:50.8]} 9. exd4 {[%clk 0:02:41.6]} 9... d5 {[%clk
0:02:50.7]} 10. Bg5 {[%clk 0:02:41]} 10... dxc4 {[%clk 0:02:47.1]} 11. Bxc4
{[%clk 0:02:40.7]} 11... h6 {[%clk 0:02:43.1]} 12. Bh4 {[%clk 0:02:40.3]} 12...
c6 {[%clk 0:02:41.1]} 13. Re1 {[%clk 0:02:37.2]} 13... Bf5 {[%clk 0:02:32.5]}
14. Qb3 {[%clk 0:02:35.3]} 14... Qb6 {[%clk 0:02:29.9]} 15. Re7 {[%clk
0:02:24.5]} 15... g5 {[%clk 0:02:22.1]} 16. Bg3 {[%clk 0:02:23.4]} 16... Qxb3
{[%clk 0:02:19.4]} 17. Bxb3 {[%clk 0:02:22.7]} 17... b6 {[%clk 0:02:14.8]} 18.
Rae1 {[%clk 0:02:14.8]} 18... Rae8 {[%clk 0:02:06.5]} 19. h3 {[%clk 0:01:39.9]}
19... Be6 {[%clk 0:01:55.9]} 20. Rxa7 {[%clk 0:01:22.6]} 20... Bxb3 {[%clk
0:01:53.2]} 21. Rxe8 {[%clk 0:01:23.2]} 21... Rxe8 {[%clk 0:01:53.8]} 22. axb3
{[%clk 0:01:23.3]} 22... Re1+ {[%clk 0:01:50.2]} 23. Kh2 {[%clk 0:01:23.5]}
23... Ne4 {[%clk 0:01:46.2]} 24. Rd7 {[%clk 0:01:07]} 24... Nxg3 {[%clk
0:01:38.7]} 25. Kxg3 {[%clk 0:01:06.1]} 25... c5 {[%clk 0:01:26.2]} 26. d5
{[%clk 0:00:54.4]} 26... h5 {[%clk 0:01:17.3]} 27. Kf3 {[%clk 0:00:52.8]} 27...
f5 {[%clk 0:01:13.8]} 28. g3 {[%clk 0:00:49.9]} 28... g4+ {[%clk 0:01:06.5]} 29.
hxg4 {[%clk 0:00:50.1]} 29... hxg4+ {[%clk 0:01:05.7]} 30. Kf4 {[%clk
0:00:50.4]} 30... Rf1 {[%clk 0:01:04.6]} 31. Kxf5 {[%clk 0:00:49.5]} 31... Rxf2+
{[%clk 0:01:04.9]} 32. Kxg4 {[%clk 0:00:48.6]} 32... Rxb2 {[%clk 0:01:04.7]} 33.
Ne4 {[%clk 0:00:46]} 33... Rxb3 {[%clk 0:01:04.7]} 34. Kf5 {[%clk 0:00:43.6]}
34... Kf8 {[%clk 0:00:34.9]} 35. d6 {[%clk 0:00:39.8]} 35... c4 {[%clk
0:00:30.9]} 36. Rc7 {[%clk 0:00:27.4]} 36... b5 {[%clk 0:00:25.6]} 37. Rc8+
{[%clk 0:00:25.5]} 37... Kf7 {[%clk 0:00:25.4]} 38. d7 {[%clk 0:00:25.9]} 38...
Rd3 {[%clk 0:00:22.1]} 39. d8=Q {[%clk 0:00:26.2]} 39... Rxd8 {[%clk 0:00:22.1]}
40. Rxd8 {[%clk 0:00:27.1]} 40... c3 {[%clk 0:00:17.1]} 41. Rd7+ {[%clk
0:00:26.1]} 41... Kf8 {[%clk 0:00:16.4]} 42. Ke6 {[%clk 0:00:22.2]} 42... Bh6
{[%clk 0:00:13.6]} 43. Nxc3 {[%clk 0:00:21.3]} 43... b4 {[%clk 0:00:13.9]} 44.
Nd5 {[%clk 0:00:21.3]} 44... b3 {[%clk 0:00:13.4]} 45. Nf6 {[%clk 0:00:21.5]}
45... Bg5 {[%clk 0:00:09.3]} 46. Rf7# {[%clk 0:00:21.6]} 1-0

[Event "Early-Titled-Tuesday-Blitz-April-23-2024"]
[Site "Chess.com"]
[Date "2024.04.23"]
[Round "6"]
[White "Happy1712Drummer"]
[Black "Pasmendjambvirgulptipon98"]
[Result "0-1"]
[WhiteElo "2504"]
[BlackElo "2363"]
[TimeControl "180+1"]
[EndTime "9:08:38 PDT"]
[Termination "Pasmendjambvirgulptipon98 won by checkmate"]

1. e4 {[%clk 0:03:00.9]} 1... e5 {[%clk 0:02:52.1]} 2. Nf3 {[%clk 0:02:57.6]}
2... Nc6 {[%clk 0:02:52.7]} 3. Nc3 {[%clk 0:02:57.6]} 3... Nf6 {[%clk
0:02:52.7]} 4. d4 {[%clk 0:02:53.8]} 4... exd4 {[%clk 0:02:52.3]} 5. Nd5 {[%clk
0:02:54.3]} 5... h6 {[%clk 0:02:28.6]} 6. Bf4 {[%clk 0:02:37.9]} 6... d6 {[%clk
0:02:25.4]} 7. Nxd4 {[%clk 0:02:38.1]} 7... Nxd4 {[%clk 0:02:10.2]} 8. Qxd4
{[%clk 0:02:36.8]} 8... Nxd5 {[%clk 0:02:05.5]} 9. exd5 {[%clk 0:02:37]} 9...
Be7 {[%clk 0:01:48.5]} 10. Qxg7 {[%clk 0:02:22.8]} 10... Bf6 {[%clk 0:01:47.2]}
11. Qg3 {[%clk 0:02:23.4]} 11... Bxb2 {[%clk 0:01:45.6]} 12. Rb1 {[%clk
0:02:23.8]} 12... Qe7+ {[%clk 0:01:45.5]} 13. Be2 {[%clk 0:02:22.1]} 13... Bd4
{[%clk 0:01:38]} 14. O-O {[%clk 0:02:18.8]} 14... Bf5 {[%clk 0:01:19.8]} 15.
Rfe1 {[%clk 0:02:08.8]} 15... Be5 {[%clk 0:00:59.7]} 16. Bxe5 {[%clk 0:02:02.2]}
16... dxe5 {[%clk 0:01:00.6]} 17. Bb5+ {[%clk 0:02:01.9]} 17... Kf8 {[%clk
0:00:47.6]} 18. Rxe5 {[%clk 0:02:00.3]} 18... Qf6 {[%clk 0:00:42.3]} 19. Rbe1
{[%clk 0:01:59.1]} 19... c6 {[%clk 0:00:40.9]} 20. dxc6 {[%clk 0:01:57.1]} 20...
bxc6 {[%clk 0:00:40.2]} 21. Bc4 {[%clk 0:01:54.8]} 21... Bxc2 {[%clk 0:00:32.7]}
22. R1e3 {[%clk 0:01:16.4]} 22... Rg8 {[%clk 0:00:25.8]} 23. Qh3 {[%clk
0:01:13.7]} 23... Rb8 {[%clk 0:00:20.9]} 24. Qd7 {[%clk 0:01:05.2]} 24... Rb1+
{[%clk 0:00:17.6]} 25. Bf1 {[%clk 0:01:01.6]} 25... Kg7 {[%clk 0:00:07.7]} 26.
Rg3+ {[%clk 0:01:00.1]} 26... Bg6 {[%clk 0:00:07.6]} 27. Re7 {[%clk 0:00:47.5]}
27... Rgb8 {[%clk 0:00:04.1]} 28. h4 {[%clk 0:00:25.2]} 28... Rxf1+ {[%clk
0:00:03.2]} 29. Kxf1 {[%clk 0:00:26.1]} 29... Rb1+ {[%clk 0:00:03.3]} 30. Ke2
{[%clk 0:00:26.6]} 30... Rb2+ {[%clk 0:00:04]} 31. Ke1 {[%clk 0:00:17.9]} 31...
Rb1+ {[%clk 0:00:03.2]} 32. Ke2 {[%clk 0:00:18]} 32... Rb2+ {[%clk 0:00:02]} 33.
Kd1 {[%clk 0:00:17.9]} 33... Rb1+ {[%clk 0:00:02.5]} 34. Kd2 {[%clk 0:00:15.8]}
34... Qb2+ {[%clk 0:00:02.3]} 35. Ke3 {[%clk 0:00:15.3]} 35... Re1+ {[%clk
0:00:03]} 36. Kf4 {[%clk 0:00:15.5]} 36... Qf6+ {[%clk 0:00:03.6]} 37. Kg4
{[%clk 0:00:14.6]} 37... Rxe7 {[%clk 0:00:03.6]} 38. Qc8 {[%clk 0:00:06.7]}
38... Re4+ {[%clk 0:00:03.5]} 39. Kh3 {[%clk 0:00:06.9]} 39... Rxh4# {[%clk
0:00:04.4]} 0-1

[Event "Early-Titled-Tuesday-Blitz-April-23-2024"]
[Site "Chess.com"]
[Date "2024.04.23"]
[Round "6"]
[White "koncheto"]
[Black "scarabee43"]
[Result "1/2-1/2"]
[WhiteElo "2612"]
[BlackElo "2826"]
[TimeControl "180+1"]
[EndTime "9:08:40 PDT"]
[Termination "Game drawn - insufficient material"]

1. e4 {[%clk 0:03:00.9]} 1... c5 {[%clk 0:02:59.8]} 2. Nf3 {[%clk 0:02:58.9]}
2... e6 {[%clk 0:03:00.4]} 3. d4 {[%clk 0:02:59.2]} 3... cxd4 {[%clk 0:03:01.1]}
4. Nxd4 {[%clk 0:03:00]} 4... Nc6 {[%clk 0:03:01.5]} 5. Nc3 {[%clk 0:03:00.2]}
5... Qc7 {[%clk 0:03:02.1]} 6. f4 {[%clk 0:02:58.8]} 6... Nxd4 {[%clk
0:02:58.5]} 7. Qxd4 {[%clk 0:02:58.8]} 7... b6 {[%clk 0:02:59.2]} 8. Be3 {[%clk
0:02:49.6]} 8... Bb7 {[%clk 0:02:55.8]} 9. O-O-O {[%clk 0:02:49.5]} 9... Nf6
{[%clk 0:02:55.3]} 10. Be2 {[%clk 0:02:42.8]} 10... Bc5 {[%clk 0:02:54.4]} 11.
Qd3 {[%clk 0:02:43.1]} 11... O-O {[%clk 0:02:50.2]} 12. Bf3 {[%clk 0:02:39.6]}
12... Rac8 {[%clk 0:02:45.2]} 13. Kb1 {[%clk 0:02:31.1]} 13... d5 {[%clk
0:02:37.6]} 14. exd5 {[%clk 0:02:27.7]} 14... Nxd5 {[%clk 0:02:16.5]} 15. Nxd5
{[%clk 0:02:09.2]} 15... Bxd5 {[%clk 0:02:16.1]} 16. Bxd5 {[%clk 0:02:01.6]}
16... Bxe3 {[%clk 0:02:13.4]} 17. Bxe6 {[%clk 0:01:53.6]} 17... fxe6 {[%clk
0:02:11.9]} 18. Qxe3 {[%clk 0:01:53.9]} 18... Qxc2+ {[%clk 0:02:12.1]} 19. Ka1
{[%clk 0:01:54.2]} 19... Qxg2 {[%clk 0:02:04.7]} 20. Qxe6+ {[%clk 0:01:51.1]}
20... Kh8 {[%clk 0:02:04.1]} 21. Rhg1 {[%clk 0:01:31.1]} 21... Qc6 {[%clk
0:01:17.3]} 22. Qxc6 {[%clk 0:01:24.3]} 22... Rxc6 {[%clk 0:01:17.7]} 23. Rd7
{[%clk 0:01:24.9]} 23... Rg6 {[%clk 0:01:08.3]} 24. Rxg6 {[%clk 0:01:17.2]}
24... hxg6 {[%clk 0:01:08.6]} 25. Rxa7 {[%clk 0:01:18.1]} 25... g5 {[%clk
0:01:08.8]} 26. f5 {[%clk 0:01:03.3]} 26... Rxf5 {[%clk 0:01:08.8]} 27. a4
{[%clk 0:01:03.6]} 27... g4 {[%clk 0:01:04.6]} 28. Ra6 {[%clk 0:00:51.1]} 28...
Rf6 {[%clk 0:00:57.9]} 29. b4 {[%clk 0:00:43]} 29... Kh7 {[%clk 0:00:35.6]} 30.
a5 {[%clk 0:00:33.7]} 30... Rf1+ {[%clk 0:00:35.7]} 31. Kb2 {[%clk 0:00:33.9]}
31... bxa5 {[%clk 0:00:36.4]} 32. Rxa5 {[%clk 0:00:28.2]} 32... Rf2+ {[%clk
0:00:36.1]} 33. Kc3 {[%clk 0:00:28.5]} 33... Rxh2 {[%clk 0:00:31]} 34. Rg5
{[%clk 0:00:28.6]} 34... Rg2 {[%clk 0:00:31.5]} 35. b5 {[%clk 0:00:26.7]} 35...
Kh6 {[%clk 0:00:31.4]} 36. b6 {[%clk 0:00:20.4]} 36... Rg1 {[%clk 0:00:25.8]}
37. Rb5 {[%clk 0:00:12]} 37... Rc1+ {[%clk 0:00:24.8]} 38. Kd2 {[%clk
0:00:08.4]} 38... Rc8 {[%clk 0:00:16.2]} 39. b7 {[%clk 0:00:08.6]} 39... Rb8
{[%clk 0:00:16.8]} 40. Ke3 {[%clk 0:00:08.8]} 40... g5 {[%clk 0:00:16.8]} 41.
Kf2 {[%clk 0:00:08]} 41... Kh5 {[%clk 0:00:17.4]} 42. Kg3 {[%clk 0:00:07.9]}
42... Kg6 {[%clk 0:00:16.4]} 43. Kxg4 {[%clk 0:00:07.1]} 43... Kf6 {[%clk
0:00:17.1]} 44. Rb6+ {[%clk 0:00:05.4]} 44... Ke7 {[%clk 0:00:16.4]} 45. Kxg5
{[%clk 0:00:04.8]} 45... Kd7 {[%clk 0:00:17]} 46. Rb1 {[%clk 0:00:03.2]} 46...
Kc7 {[%clk 0:00:17.2]} 47. Kf5 {[%clk 0:00:03.8]} 47... Rxb7 {[%clk 0:00:17.8]}
48. Rxb7+ {[%clk 0:00:04.7]} 48... Kxb7 {[%clk 0:00:18.7]} 1/2-1/2